fUST/lending_fUST_20250722
["ID","MTS","AMOUNT","RATE_DAILY","PERIOD"]
[373923076,1753155048098,-460.0,0.00017696,2]
[373923078,1753155048108,-460.0,0.00017696,2]
[373923080,1753155048117,-460.0,0.00017696,2]
[373923082,1753155048127,-460.0,0.00017696,2]
[373923084,1753155048137,-460.0,0.00017696,2]
[373923086,1753155048147,-597.28,0.00017696,2]
[373923087,1753155048157,-460.0,0.00017696,2]
[373923089,1753155048167,-460.0,0.00017696,2]
[373923091,1753155048176,-460.0,0.00017696,2]
[373923093,1753155048186,-460.0,0.00017696,2]
[373923095,1753155048196,-460.0,0.00017696,2]
[373923098,1753155048206,-460.0,0.00017696,2]
[373923100,1753155048216,-460.0,0.00017696,2]
[373923102,1753155048226,-460.0,0.00017696,2]
[373923104,1753155048236,-460.0,0.00017696,2]
[373923106,1753155048245,-460.0,0.00017696,2]
[373923108,1753155048254,-460.0,0.00017696,2]
[373923110,1753155048263,-479.79834282,0.00017696,2]
[373923112,1753155048273,-460.0,0.00017696,2]
[373923114,1753155048283,-589.75,0.00017696,2]
[373923115,1753155048293,-460.0,0.00017696,2]
[373923117,1753155048303,-903.27,0.00017696,2]
[373923120,1753155048312,-460.0,0.00017696,2]
[373923122,1753155048321,-1133.84,0.00017696,2]
[373923124,1753155048331,-460.0,0.00017696,2]
[373923125,1753155048340,-460.0,0.00017696,2]
[373923127,1753155048349,-460.0,0.00017696,2]
[373923129,1753155048359,-486.59036689,0.00017696,2]
[373923132,1753155048369,-460.0,0.00017696,2]
[373923133,1753155048378,-460.0,0.00017696,2]
[373923135,1753155048388,-460.0,0.00017696,2]
[373923137,1753155048398,-8332.07,0.00017696,2]
[373923140,1753155048407,-460.0,0.00017696,2]
[373923142,1753155048417,-460.0,0.00017696,2]
[373923143,1753155048426,-460.0,0.00017696,2]
[373923146,1753155048436,-182.57087377,0.00017696,2]
[373923148,1753155048445,-1059.65,0.00017696,2]
[373923149,1753155048455,-460.0,0.00017696,2]
[373923152,1753155048464,-644.16,0.00017696,2]
[373923154,1753155048473,-460.0,0.00017696,2]
[373923156,1753155048483,-810.63,0.00017696,2]
[373923158,1753155048492,-460.0,0.00017696,2]
[373923160,1753155048501,-1241.4,0.00017696,2]
[373923162,1753155048510,-460.0,0.00017696,2]
[373923164,1753155048519,-460.0,0.00017696,2]
[373923166,1753155048529,-972.6,0.00017696,2]
[373923167,1753155048538,-1703.11,0.00017696,2]
[373923169,1753155048548,-464.02174514,0.00017696,2]
[373923172,1753155048559,-624.66,0.00017696,2]
[373923174,1753155048568,-460.0,0.00017696,2]
[373923175,1753155048578,-541.08967874,0.00017696,2]
[373923177,1753155048587,-460.0,0.00017696,2]
[373923180,1753155048598,-460.0,0.00017696,2]
[373923182,1753155048607,-460.0,0.00017696,2]
[373923184,1753155048617,-460.0,0.00017696,2]
[373923186,1753155048626,-460.0,0.00017696,2]
[373923188,1753155048635,-460.0,0.00017696,2]
[373923190,1753155048645,-460.0,0.00017696,2]
[373923192,1753155048654,-460.0,0.00017696,2]
[373923194,1753155048663,-1031.86,0.00017696,2]
[373923196,1753155048672,-766.43,0.00017696,2]
[373923198,1753155048682,-601.53,0.00017696,2]
[373923200,1753155048691,-3121.3,0.00017696,2]
[373923202,1753155048701,-460.0,0.00017696,2]
[373923204,1753155048710,-814.8,0.00017696,2]
[373923206,1753155048720,-460.0,0.00017696,2]
[373923208,1753155048731,-460.0,0.00017697,2]
[373923222,1753155048856,-460.0,0.00017697,2]
[373923224,1753155048867,-1157.53,0.00017697,2]
[373923226,1753155048877,-741.92,0.00017697,2]
[373923228,1753155048887,-2377.69,0.00017697,2]
[373923230,1753155048896,-1396.33,0.00017697,2]
[373923232,1753155048906,-460.0,0.00017697,2]
[373923234,1753155048916,-460.0,0.00017697,2]
[373923236,1753155048925,-1494.51,0.00017697,2]
[373923238,1753155048935,-151.0,0.000177,2]
[373923240,1753155048944,-151.0,0.000177,2]
[373923242,1753155048954,-470.38675509,0.000177,2]
[373923244,1753155048963,-460.0,0.000177,2]
[373923246,1753155048973,-460.0,0.000177,2]
[373923248,1753155048982,-460.0,0.000177,2]
[373923250,1753155048992,-460.0,0.000177,2]
[373923252,1753155049003,-460.0,0.000177,2]
[373923254,1753155049013,-460.0,0.000177,2]
[373923256,1753155049023,-460.0,0.000177,2]
[373923258,1753155049034,-460.0,0.000177,2]
[373923260,1753155049044,-460.0,0.000177,2]
[373923262,1753155049054,-460.0,0.000177,2]
[373923264,1753155049064,-460.0,0.000177,2]
[373923266,1753155049077,-467.0143145,0.000177,2]
[373923268,1753155049087,-460.0,0.000177,2]
[373923270,1753155049096,-460.0,0.000177,2]
[373923272,1753155049107,-460.0,0.000177,2]
[373923274,1753155049117,-460.0,0.000177,2]
[373923276,1753155049127,-460.0,0.000177,2]
[373923278,1753155049137,-466.63514975,0.000177,2]
[373923280,1753155049148,-460.0,0.000177,2]
[373923282,1753155049157,-472.45662599,0.000177,2]
[373923284,1753155049167,-471.89490987,0.000177,2]
[373923286,1753155049176,-460.0,0.000177,2]
[373923288,1753155049185,-459.06164029,0.000177,2]
[373923290,1753155049195,-932.76,0.000177,2]
[373923292,1753155049205,-460.0,0.000177,2]
[373923294,1753155049215,-947.92,0.000177,2]
[373923296,1753155049224,-603.87,0.000177,2]
[373923298,1753155049234,-460.0,0.000177,2]
[373923300,1753155049244,-460.0,0.000177,2]
[373923301,1753155049253,-522.55213114,0.000177,2]
[373923303,1753155049262,-869.94,0.000177,2]
[373923305,1753155049271,-726.45,0.000177,2]
[373923307,1753155049283,-460.0,0.000177,2]
[373923309,1753155049293,-467.56894109,0.000177,2]
[373923311,1753155049302,-460.0,0.000177,2]
[373923313,1753155049313,-460.0,0.000177,2]
[373923315,1753155049322,-460.0,0.000177,2]
[373923317,1753155049332,-1023.26,0.000177,2]
[373923319,1753155049341,-1006.84,0.000177,2]
[373923321,1753155049350,-460.0,0.000177,2]
[373923323,1753155049360,-467.07123571,0.000177,2]
[373923325,1753155049370,-691.68,0.000177,2]
[373923327,1753155049380,-1210.17,0.000177,2]
[373923329,1753155049398,-460.0,0.00017706,2]
[373923331,1753155049409,-460.0,0.00017706,2]
[373923333,1753155049419,-460.0,0.00017706,2]
[373923335,1753155049429,-480.03,0.00017706,2]
[373923337,1753155049438,-460.0,0.00017706,2]
[373923339,1753155049448,-460.0,0.00017706,2]
[373923341,1753155049457,-470.61095494,0.00017706,2]
[373923343,1753155049467,-463.97500908,0.00017706,2]
[373923345,1753155049476,-1213.11,0.00017706,2]
[373923347,1753155049485,-1052.06,0.00017706,2]
[373923349,1753155049495,-626.86,0.00017706,2]
[373923351,1753155049504,-460.0,0.00017706,2]
[373923353,1753155049514,-460.0,0.00017706,2]
[373923355,1753155049524,-460.0,0.00017706,2]
[373923357,1753155049537,-465.49053133,0.00017706,2]
[373923359,1753155049547,-460.0,0.00017706,2]
[373923361,1753155049556,-1272.65,0.00017706,2]
[373923363,1753155049565,-474.62,0.00017706,2]
[373923365,1753155049575,-460.0,0.00017706,2]
[373923367,1753155049584,-524.33,0.00017706,2]
[373923369,1753155049594,-460.0,0.00017706,2]
[373923371,1753155049603,-460.0,0.00017706,2]
[373923373,1753155049614,-707.91,0.00017706,2]
[373923375,1753155049623,-460.0,0.00017706,2]
[373923377,1753155049633,-460.0,0.00017706,2]
[373923379,1753155049642,-460.0,0.00017706,2]
[373923381,1753155049652,-460.0,0.00017706,2]
[373923383,1753155049661,-460.0,0.00017706,2]
[373923385,1753155049671,-1397.62,0.00017706,2]
[373923387,1753155049680,-460.0,0.00017706,2]
[373923389,1753155049689,-460.0,0.00017706,2]
[373923391,1753155049699,-524.33,0.00017706,2]
[373923393,1753155049708,-460.0,0.00017706,2]
[373923395,1753155049717,-460.0,0.00017706,2]
[373923397,1753155049727,-476.21388117,0.00017706,2]
[373923399,1753155049736,-460.0,0.00017706,2]
[373923401,1753155049745,-460.0,0.00017706,2]
[373923403,1753155049754,-460.0,0.00017706,2]
[373923405,1753155049763,-509.91,0.00017706,2]
[373923407,1753155049772,-460.0,0.00017706,2]
[373923409,1753155049784,-460.0,0.00017706,2]
[373923411,1753155049793,-151.0,0.00017709,2]
[373923413,1753155049802,-151.0,0.00017709,2]
[373923415,1753155049811,-151.0,0.0001771,2]
[373923417,1753155049822,-168.0,0.00017714,2]
[373923419,1753155049831,-504.81165985,0.00017721,2]
[373923421,1753155049840,-1011.76147251,0.00017721,2]
[373923423,1753155049849,-150.0,0.00017725,2]
[373923424,1753155049858,-500.0,0.00017736,2]
[373923426,1753155049868,-1056.403233,0.00017802,2]
[373923428,1753155049877,-1056.403233,0.00017802,2]
[373923430,1753155049887,-460.0,0.00017802,2]
[373923432,1753155049896,-460.0,0.00017802,2]
[373923434,1753155049905,-460.0,0.00017802,2]
[373923436,1753155049915,-153.391373,0.00017807,2]
[373923438,1753155049925,-151.0,0.00017807,2]
[373923440,1753155049934,-541.34404419,0.00017807,2]
[373923442,1753155049943,-151.0,0.00017807,2]
[373923444,1753155049953,-151.0,0.00017807,2]
[373923446,1753155049963,-209.35839772,0.00017807,2]
[373923448,1753155049972,-151.0,0.00017807,2]
[373923450,1753155049981,-460.0,0.00017807,2]
[373923452,1753155049991,-468.35448005,0.00017807,2]
[373923454,1753155050000,-460.0,0.00017807,2]
[373923456,1753155050010,-572.24,0.00017807,2]
[373923458,1753155050019,-460.0,0.00017807,2]
[373923460,1753155050029,-471.07513265,0.00017807,2]
[373923462,1753155050040,-301.53015686,0.00017807,2]
[373923464,1753155050049,-460.0,0.00017807,2]
[373923466,1753155050058,-460.0,0.00017807,2]
[373923468,1753155050070,-460.0,0.00017807,2]
[373923470,1753155050079,-460.0,0.00017807,2]
[373923472,1753155050088,-460.0,0.00017807,2]
[373923473,1753155050098,-464.35581133,0.00017807,2]
[373923475,1753155050107,-460.0,0.00017807,2]
[373923477,1753155050116,-460.0,0.00017807,2]
[373923479,1753155050126,-460.0,0.00017807,2]
[373923481,1753155050135,-460.0,0.00017807,2]
[373923483,1753155050144,-7863.7,0.00017807,2]
[373923485,1753155050154,-2259.25,0.00017807,2]
[373923487,1753155050164,-460.0,0.00017807,2]
[373923489,1753155050173,-2787.01,0.00017807,2]
[373923491,1753155050182,-151.0,0.00017808,2]
[373923493,1753155050191,-151.0,0.00017808,2]
[373923495,1753155050200,-151.0,0.00017808,2]
[373923497,1753155050210,-151.0,0.00017808,2]
[373923499,1753155050219,-241.664933,0.00017808,2]
[373923501,1753155050228,-151.531236,0.00017809,2]
[373923503,1753155050238,-151.0,0.00017809,2]
[373923505,1753155050248,-1056.403233,0.00017809,2]
[373923507,1753155050257,-1056.403233,0.00017809,2]
[373923509,1753155050266,-151.0,0.00017809,2]
[373923511,1753155050275,-151.0,0.00017809,2]
[373923513,1753155050286,-151.0,0.0001781,2]
[373923515,1753155050295,-151.0,0.0001781,2]
[373923517,1753155050305,-151.0,0.0001781,2]
[373923519,1753155050314,-151.0,0.0001781,2]
[373923521,1753155050323,-298.79968,0.0001781,2]
[373923523,1753155050333,-151.0,0.0001781,2]
[373923525,1753155050342,-151.0,0.00017811,2]
[373923527,1753155050351,-151.0,0.00017811,2]
[373923529,1753155050360,-151.0,0.00017811,2]
[373923531,1753155050369,-151.0,0.00017811,2]
[373923533,1753155050379,-151.0,0.00017811,2]
[373923535,1753155050387,-292.834711,0.00017811,2]
[373923536,1753155050396,-151.809277,0.00017811,2]
[373923538,1753155050406,-3752.32,0.00017811,2]
[373923540,1753155050415,-460.0,0.00017811,2]
[373923542,1753155050425,-869.74,0.00017811,2]
[373923544,1753155050434,-2894.57,0.00017811,2]
[373923546,1753155050443,-1720.16,0.00017811,2]
[373923548,1753155050453,-2580.77,0.00017811,2]
[373923550,1753155050463,-460.0,0.00017811,2]
[373923552,1753155050472,-460.0,0.00017811,2]
[373923554,1753155050481,-151.0,0.00017812,2]
[373923556,1753155050490,-151.158372,0.00017812,2]
[373923558,1753155050499,-151.0,0.00017812,2]
[373923560,1753155050508,-151.0,0.00017812,2]
[373923562,1753155050518,-151.0,0.00017812,2]
[373923564,1753155050527,-151.651623,0.00017812,2]
[373923566,1753155050538,-151.0,0.00017812,2]
[373923568,1753155050547,-151.0,0.00017812,2]
[373923570,1753155050556,-151.0,0.00017812,2]
[373923572,1753155050566,-151.0,0.00017812,2]
[373923574,1753155050575,-152.30135,0.00017812,2]
[373923576,1753155050585,-151.0,0.00017812,2]
[373923578,1753155050595,-151.0,0.00017812,2]
[373923580,1753155050604,-151.0,0.00017812,2]
[373923582,1753155050613,-1056.403233,0.00017812,2]
[373923584,1753155050623,-1056.403233,0.00017812,2]
[373923586,1753155050633,-209.424477,0.00017812,2]
[373923588,1753155050643,-151.0,0.00017812,2]
[373923590,1753155050653,-151.0,0.00017814,2]
[373923592,1753155050670,-166.34401321,0.00017821,2]
[373923594,1753155050688,-1000.0,0.00017821,2]
[373923596,1753155050699,-1000.0,0.00017821,2]
[373923598,1753155050709,-1000.0,0.00017821,2]
[373923600,1753155050720,-1000.0,0.00017821,2]
[373923602,1753155050732,-418.09963865,0.00017843,2]
[373923604,1753155050744,-152.626866,0.0001787,2]
[373923606,1753155050755,-151.0,0.0001787,2]
[373923608,1753155050766,-151.0,0.0001787,2]
[373923610,1753155050777,-154.503365,0.0001787,2]
[373923612,1753155050794,-151.0,0.0001787,2]
[373923614,1753155050804,-151.993621,0.0001787,2]
[373923616,1753155050815,-151.0,0.0001787,2]
[373923618,1753155050828,-152.614176,0.0001787,2]
[373923620,1753155050839,-151.0,0.0001787,2]
[373923622,1753155050849,-151.0,0.0001787,2]
[373923624,1753155050859,-151.0,0.0001787,2]
[373923626,1753155050869,-151.0,0.00017873,2]
[373923628,1753155050879,-490.86920698,0.0001789,2]
[373923630,1753155050888,-154.9988728,0.00017891,2]
[373923632,1753155050897,-151.375709,0.000179,2]
[373923634,1753155050907,-9122.12843232,0.000179,2]
[373923636,1753155050916,-151.0,0.00017907,2]
[373923638,1753155050927,-151.0,0.00017907,2]
[373923639,1753155050936,-151.0,0.00017907,2]
[373923641,1753155050946,-151.0,0.00017907,2]
[373923643,1753155050955,-151.0,0.00017907,2]
[373923645,1753155050965,-152.677723,0.00017915,2]
[373923647,1753155050973,-151.0,0.00017915,2]
[373923649,1753155050983,-151.0,0.00017918,2]
[373923651,1753155050992,-460.0,0.00017968,2]
[373923653,1753155051002,-460.0,0.00017969,2]
[373923655,1753155051011,-443.40222335,0.00017969,2]
[373923657,1753155051020,-4140.53,0.00017969,2]
[373923659,1753155051034,-1188.07,0.00017969,2]
[373923661,1753155051044,-770.35,0.00017969,2]
[373923663,1753155051053,-460.0,0.00017969,2]
[373923665,1753155051063,-460.0,0.00017969,2]
[373923667,1753155051075,-460.0,0.00017969,2]
[373923669,1753155051084,-3886.74,0.00017969,2]
[373923671,1753155051093,-619.37,0.00017969,2]
[373923673,1753155051103,-460.0,0.00017969,2]
[373923675,1753155051113,-745.36,0.00017969,2]
[373923677,1753155051122,-761.24,0.00017969,2]
[373923679,1753155051131,-460.0,0.00017969,2]
[373923680,1753155051148,-1721.05,0.00017969,2]
[373923682,1753155051166,-2378.29,0.00017969,2]
[373923685,1753155051176,-954.9,0.00017969,2]
[373923686,1753155051185,-460.0,0.00017969,2]
[373923688,1753155051194,-458.64197493,0.0001797,2]
[373923690,1753155051203,-460.0,0.0001797,2]
[373923692,1753155051213,-460.0,0.0001797,2]
[373923694,1753155051222,-460.0,0.0001797,2]
[373923696,1753155051232,-460.0,0.0001797,2]
[373923698,1753155051242,-460.0,0.0001797,2]
[373923700,1753155051252,-460.0,0.0001797,2]
[373923702,1753155051261,-597.28,0.0001797,2]
[373923704,1753155051270,-222.60392338,0.0001797,2]
[373923706,1753155051279,-460.0,0.0001797,2]
[373923708,1753155051293,-562.61413132,0.0001797,2]
[373923710,1753155051302,-460.0,0.0001797,2]
[373923712,1753155051312,-460.0,0.0001797,2]
[373923714,1753155051321,-460.0,0.0001797,2]
[373923716,1753155051330,-460.0,0.0001797,2]
[373923717,1753155051340,-460.0,0.0001797,2]
[373923718,1753155051349,-460.0,0.0001797,2]
[373923719,1753155051359,-460.0,0.0001797,2]
[373923720,1753155051368,-460.0,0.0001797,2]
[373923721,1753155051378,-460.0,0.0001797,2]
[373923722,1753155051387,-589.75,0.0001797,2]
[373923723,1753155051397,-520.82783007,0.0001797,2]
[373923724,1753155051407,-903.27,0.0001797,2]
[373923725,1753155051529,-460.0,0.0001797,2]
[373923726,1753155051543,-1133.84,0.0001797,2]
[373923727,1753155051553,-482.76717015,0.0001797,2]
[373923729,1753155051562,-460.0,0.0001797,2]
[373923731,1753155051571,-460.0,0.0001797,2]
[373923733,1753155051581,-460.0,0.0001797,2]
[373923735,1753155051590,-460.0,0.0001797,2]
[373923737,1753155051600,-460.0,0.0001797,2]
[373923739,1753155051609,-8332.07,0.0001797,2]
[373923740,1753155051619,-460.0,0.0001797,2]
[373923743,1753155051628,-460.0,0.0001797,2]
[373923745,1753155051638,-460.0,0.0001797,2]
[373923746,1753155051648,-1059.65,0.0001797,2]
[373923748,1753155051657,-460.0,0.0001797,2]
[373923750,1753155051667,-644.16,0.0001797,2]
[373923752,1753155051676,-427.72632387,0.0001797,2]
[373923754,1753155051686,-460.0,0.0001797,2]
[373923756,1753155051694,-1241.4,0.0001797,2]
[373923758,1753155051704,-810.63,0.0001797,2]
[373923760,1753155051713,-460.0,0.0001797,2]
[373923762,1753155051722,-460.0,0.0001797,2]
[373923764,1753155051732,-972.6,0.0001797,2]
[373923766,1753155051742,-1703.11,0.0001797,2]
[373923768,1753155051752,-624.66,0.0001797,2]
[373923770,1753155051762,-460.0,0.0001797,2]
[373923772,1753155051771,-460.0,0.0001797,2]
[373923774,1753155051784,-460.0,0.0001797,2]
[373923776,1753155051793,-460.0,0.0001797,2]
[373923779,1753155051803,-460.0,0.0001797,2]
[373923781,1753155051812,-460.0,0.0001797,2]
[373923783,1753155051821,-460.0,0.0001797,2]
[373923785,1753155051831,-498.9123448,0.0001797,2]
[373923787,1753155051840,-460.0,0.0001797,2]
[373923789,1753155051849,-1031.86,0.0001797,2]
[373923791,1753155051861,-766.43,0.0001797,2]
[373923793,1753155051870,-601.53,0.0001797,2]
[373923795,1753155051879,-3121.3,0.0001797,2]
[373923797,1753155051889,-460.0,0.0001797,2]
[373923799,1753155051898,-814.8,0.0001797,2]
[373923801,1753155051907,-482.921738,0.0001797,2]
[373923802,1753155051916,-460.0,0.00017971,2]
[373923804,1753155051925,-460.0,0.00017971,2]
[373923806,1753155051934,-1157.53,0.00017971,2]
[373923808,1753155051944,-741.92,0.00017971,2]
[373923810,1753155051953,-2377.69,0.00017971,2]
[373923812,1753155051962,-1396.33,0.00017971,2]
[373923814,1753155051971,-460.0,0.00017971,2]
[373923816,1753155051980,-460.0,0.00017971,2]
[373923818,1753155051990,-1494.51,0.00017971,2]
[373923820,1753155051999,-482.34242537,0.00017974,2]
[373923822,1753155052007,-473.21395594,0.00017974,2]
[373923824,1753155052017,-488.90062119,0.00017974,2]
[373923826,1753155052027,-460.0,0.00017974,2]
[373923828,1753155052038,-460.0,0.00017974,2]
[373923830,1753155052048,-460.0,0.00017974,2]
[373923832,1753155052057,-460.0,0.00017974,2]
[373923834,1753155052070,-363.49703604,0.00017974,2]
[373923836,1753155052079,-487.32055215,0.00017974,2]
[373923838,1753155052088,-460.0,0.00017974,2]
[373923840,1753155052097,-391.00601268,0.00017974,2]
[373923842,1753155052106,-460.0,0.00017974,2]
[373923844,1753155052118,-554.09054906,0.00017974,2]
[373923846,1753155052127,-460.0,0.00017974,2]
[373923848,1753155052137,-460.0,0.00017974,2]
[373923850,1753155052148,-460.0,0.00017974,2]
[373923852,1753155052158,-460.0,0.00017974,2]
[373923854,1753155052167,-460.0,0.00017974,2]
[373923856,1753155052176,-932.76,0.00017974,2]
[373923858,1753155052186,-460.0,0.00017974,2]
[373923860,1753155052195,-947.92,0.00017974,2]
[373923862,1753155052204,-603.87,0.00017974,2]
[373923864,1753155052214,-460.0,0.00017974,2]
[373923866,1753155052223,-460.0,0.00017974,2]
[373923868,1753155052232,-869.94,0.00017974,2]
[373923870,1753155052242,-726.45,0.00017974,2]
[373923872,1753155052251,-460.0,0.00017974,2]
[373923874,1753155052260,-460.0,0.00017974,2]
[373923876,1753155052270,-460.0,0.00017974,2]
[373923878,1753155052280,-460.0,0.00017974,2]
[373923880,1753155052290,-1023.26,0.00017974,2]
[373923882,1753155052299,-1006.84,0.00017974,2]
[373923884,1753155052309,-460.0,0.00017974,2]
[373923886,1753155052318,-691.68,0.00017974,2]
[373923888,1753155052328,-1210.17,0.00017974,2]
[373923890,1753155052338,-460.0,0.0001798,2]
[373923892,1753155052347,-460.0,0.0001798,2]
[373923894,1753155052357,-480.03,0.0001798,2]
[373923896,1753155052366,-460.0,0.0001798,2]
[373923898,1753155052375,-460.0,0.0001798,2]
[373923900,1753155052385,-1213.11,0.0001798,2]
[373923902,1753155052394,-1052.06,0.0001798,2]
[373923904,1753155052403,-626.86,0.0001798,2]
[373923906,1753155052412,-460.0,0.0001798,2]
[373923908,1753155052421,-473.8932571,0.0001798,2]
[373923910,1753155052431,-460.0,0.0001798,2]
[373923912,1753155052440,-599.42932843,0.0001798,2]
[373923914,1753155052449,-1272.65,0.0001798,2]
[373923916,1753155052458,-474.62,0.0001798,2]
[373923918,1753155052467,-475.38328672,0.0001798,2]
[373923920,1753155052476,-524.33,0.0001798,2]
[373923922,1753155052485,-460.0,0.0001798,2]
[373923924,1753155052495,-460.0,0.0001798,2]
[373923926,1753155052504,-707.91,0.0001798,2]
[373923928,1753155052513,-460.0,0.0001798,2]
[373923930,1753155052522,-460.0,0.0001798,2]
[373923932,1753155052533,-460.0,0.0001798,2]
[373923934,1753155052542,-460.0,0.0001798,2]
[373923936,1753155052552,-460.0,0.0001798,2]
[373923938,1753155052561,-1397.62,0.0001798,2]
[373923940,1753155052570,-460.0,0.0001798,2]
[373923942,1753155052581,-460.0,0.0001798,2]
[373923944,1753155052590,-524.33,0.0001798,2]
[373923946,1753155052599,-460.0,0.0001798,2]
[373923948,1753155052609,-460.0,0.0001798,2]
[373923950,1753155052618,-460.0,0.0001798,2]
[373923952,1753155052627,-460.0,0.0001798,2]
[373923954,1753155052636,-460.0,0.0001798,2]
[373923956,1753155052645,-509.91,0.0001798,2]
[373923958,1753155052655,-460.0,0.0001798,2]
[373923960,1753155052664,-460.0,0.0001798,2]
[373923962,1753155052673,-1056.403233,0.00017981,2]
[373923964,1753155052682,-1056.403233,0.00017981,2]
[373923966,1753155052691,-150.0,0.00018,2]
[373923968,1753155052701,-151.0,0.00018,2]
[373923970,1753155052711,-151.0,0.00018,2]
[373923972,1753155052720,-151.0,0.00018,2]
[373923974,1753155052729,-151.0,0.00018019,2]
[373923976,1753155052738,-151.0,0.00018019,2]
[373923978,1753155052748,-151.0,0.0001802,2]
[373923980,1753155052757,-151.0,0.0001802,2]
[373923982,1753155052767,-151.0,0.0001802,2]
[373923984,1753155052776,-547.08361476,0.00018021,2]
[373923986,1753155052787,-502.9902973,0.00018021,2]
[373923988,1753155052796,-1000.0,0.00018021,2]
[373923990,1753155052806,-503.55156825,0.00018021,2]
[373923992,1753155052815,-717.39092415,0.00018021,2]
[373923994,1753155052825,-1000.0,0.00018021,2]
[373923996,1753155052834,-1000.0,0.00018021,2]
[373923998,1753155052843,-1000.0,0.00018021,2]
[373924000,1753155052852,-502.88664607,0.00018021,2]
[373924002,1753155052861,-503.36862493,0.00018021,2]
[373924004,1753155052871,-621.02837529,0.00018021,2]
[373924006,1753155052880,-500.69775639,0.00018021,2]
[373924008,1753155052889,-1000.0,0.00018021,2]
[373924010,1753155052900,-1000.0,0.00018021,2]
[373924012,1753155052909,-151.0,0.00018072,2]
[373924014,1753155052918,-151.0,0.00018072,2]
[373924016,1753155052927,-9122.12843205,0.00018072,2]
[373924018,1753155052936,-460.0,0.00018076,2]
[373924020,1753155052947,-460.0,0.00018076,2]
[373924022,1753155052963,-460.0,0.00018076,2]
[373924024,1753155052984,-1056.403233,0.00018081,2]
[373924026,1753155052996,-1056.40324,0.00018081,2]
[373924028,1753155053005,-460.0,0.00018081,2]
[373924030,1753155053013,-419.81022479,0.00018081,2]
[373924032,1753155053023,-572.24,0.00018081,2]
[373924034,1753155053034,-472.95010136,0.00018081,2]
[373924036,1753155053043,-460.0,0.00018081,2]
[373924038,1753155053052,-463.87222428,0.00018081,2]
[373924039,1753155053061,-460.0,0.00018081,2]
[373924041,1753155053071,-460.0,0.00018081,2]
[373924043,1753155053083,-460.0,0.00018081,2]
[373924045,1753155053092,-460.0,0.00018081,2]
[373924047,1753155053101,-460.0,0.00018081,2]
[373924049,1753155053110,-460.0,0.00018081,2]
[373924051,1753155053120,-460.0,0.00018081,2]
[373924053,1753155053129,-7863.7,0.00018081,2]
[373924055,1753155053138,-2259.25,0.00018081,2]
[373924057,1753155053148,-460.0,0.00018081,2]
[373924059,1753155053158,-2787.01,0.00018081,2]
[373924061,1753155053167,-160.860804,0.00018082,2]
[373924063,1753155053176,-151.0,0.00018082,2]
[373924065,1753155053185,-151.0,0.00018082,2]
[373924067,1753155053195,-273.928288,0.00018082,2]